[Event "AUT Bundesliga 2022-23"]
[Site "Jenbach"]
[Date "2022.11.05"]
[Round "3.26"]
[White "Svane, Rasmus"]
[Black "Brkic, Ante"]
[Result "1-0"]
[ECO "B52"]
[WhiteElo "2615"]
[BlackElo "2602"]
[Annotator "ChessBase"]
[PlyCount "137"]
[EventDate "2022.11.03"]
[EventType "team-tourn"]
[EventCountry "AUT"]
[SourceTitle "playchess.com"]
[Source "ChessBase"]
[SourceQuality "1"]
[TimeControl "40/5400+30:1800+30"]

1. e4 {[%emt 0:00:03]} c5 {[%emt 0:00:24]} 2. Nf3 {[%emt 0:00:07]} d6 {[%emt 0:00:05]} 3. Bb5+ {[%emt 0:00:10]} Bd7 {[%emt 0:00:43]} 4. Bxd7+ {[%emt 0:00:15]} Nxd7 {[%emt 0:00:05]} 5. O-O {[%emt 0:01:43]} Ngf6 {[%emt 0:00:10]} 6. d3 {[%emt 0:03:31]} e6 {[%emt 0:02:42]} 7. c4 {[%emt 0:00:31]} Ne5 {[%emt 0:11:53]} 8. Ne1 {[%emt 0:03:46]} Be7 {[%emt 0:04:28]} 9. f4 {[%emt 0:00:08]} Nc6 {[%emt 0:00:09]} 10. Nc3 {[%emt 0:01:53]} O-O {[%emt 0:00:41]} 11. g4 {[%emt 0:00:13]} Ne8 {[%emt 0:05:54]} 12. f5 {[%emt 0:24:56]} Nc7 {[%emt 0:18:28]} 13. Nf3 {[%emt 0:06:56]} Qd7 {[%emt 0:13:56]} 14. Bf4 {[%emt 0:00:58]} Rab8 {[%emt 0:00:29]} 15. Qd2 {[%emt 0:06:07]} b5 {[%emt 0:02:14]} 16. Ne2 {[%emt 0:14:51]} f6 {[%emt 0:18:06]} 17. Rad1 {[%emt 0:07:24]} Ne5 {[%emt 0:01:07]} 18. Nxe5 {[%emt 0:01:42]} dxe5 {[%emt 0:07:15]} 19. Be3 {[%emt 0:00:05]} Rfd8 {[%emt 0:00:17]} 20. Qc2 {[%emt 0:08:30]} Rb6 {[%emt 0:00:01]} 21. Nc3 {[%emt 0:07:23]} b4 {[%emt 0:05:29]} 22. Na4 {[%emt 0:01:05]} Rc6 {[%emt 0:00:18]} 23. Qf2 {[%emt 0:02:24]} Na6 {[%emt 0:02:43]} 24. b3 {[%emt 0:00:58]} Qc7 {[%emt 0:03:27]} 25. Rd2 {[%emt 0:00:35]} Rd7 {[%emt 0:00:43]} 26. Kh1 {[%emt 0:00:50]} Qd8 {[%emt 0:00:10]} 27. Rfd1 {[%emt 0:00:16]} Bf8 {[%emt 0:00:54]} 28. Qf3 {[%emt 0:02:33]} Rdc7 {[%emt 0:00:41]} 29. h4 {[%emt 0:00:22]} Rd7 {[%emt 0:00:28]} 30. Bg1 {[%emt 0:01:33]} Nc7 {[%emt 0:00:31]} 31. Rg2 {[%emt 0:00:32]} Rf7 {[%emt 0:00:30]} 32. Rdd2 {[%emt 0:00:17]} Qe7 {[%emt 0:00:30]} 33. Rg3 {[%emt 0:00:55]} g5 {[%emt 0:00:41]} 34. Rh2 {[%emt 0:01:03]} Bh6 {[%emt 0:00:24]} 35. Be3 {[%emt 0:00:35]} gxh4 {[%emt 0:00:07]} 36. Rxh4 {[%emt 0:00:12]} Bxe3 {[%emt 0:00:06]} 37. Qxe3 {[%emt 0:00:03]} Rg7 {[%emt 0:00:13]} 38. Rh5 {[%emt 0:00:47]} Ne8 {[%emt 0:00:37]} 39. Qf2 {[%emt 0:02:23]} exf5 {[%emt 0:01:14]} 40. gxf5 {[%emt 0:00:00]} Rxg3 {[%emt 0:00:00]} 41. Qxg3+ {[%emt 0:00:48]} Qg7 {[%emt 0:06:33]} 42. Qf2 {[%emt 0:01:01]} Qf8 {[%emt 0:11:16]} 43. Rh3 {[%emt 0:04:44]} Rc7 {[%emt 0:00:24]} 44. Kg1 {[%emt 0:02:51]} Qd6 {[%emt 0:03:49]} 45. Rg3+ {[%emt 0:04:38]} Kf8 {[%emt 0:00:30]} 46. Qd2 {[%emt 0:09:41]} Qd4+ {[%emt 0:03:24]} 47. Kg2 {[%emt 0:01:18]} Rg7 {[%emt 0:00:14]} 48. Rxg7 {[%emt 0:01:33]} Nxg7 {[%emt 0:07:12]} 49. Qf2 {[%emt 0:00:09]} Nh5 {[%emt 0:01:53]} 50. Nxc5 {[%emt 0:00:08]} Qc3 {[%emt 0:00:48]} 51. Ne6+ {[%emt 0:00:34]} Ke8 {[%emt 0:00:29]} 52. Qe2 {[%emt 0:02:54]} Nf4+ {[%emt 0:00:07]} 53. Nxf4 {[%emt 0:00:05]} exf4 {[%emt 0:00:01]} 54. Kf3 {[%emt 0:00:56]} Qc1 {[%emt 0:00:01]} 55. e5 {[%emt 0:02:14]} Ke7 {[%emt 0:01:14]} 56. exf6+ {[%emt 0:03:15]} Kxf6 {[%emt 0:00:02]} 57. Qe6+ {[%emt 0:00:09]} Kg5 {[%emt 0:00:00]} 58. Qe7+ {[%emt 0:00:15]} Kxf5 {[%emt 0:00:09]} 59. Qxh7+ {[%emt 0:00:20]} Kg5 {[%emt 0:02:20]} 60. Qg7+ {[%emt 0:00:59]} Kf5 {[%emt 0:00:08]} 61. Qg4+ {[%emt 0:01:40]} Ke5 {[%emt 0:00:02]} 62. Qg5+ {[%emt 0:00:31]} Ke6 {[%emt 0:00:10]} 63. Qd5+ {[%emt 0:00:20]} Kf6 {[%emt 0:00:21]} 64. Qd4+ {[%emt 0:00:14]} Ke6 {[%emt 0:00:20]} 65. Qe4+ {[%emt 0:00:11]} Kd7 {[%emt 0:00:14]} 66. Qxf4 {[%emt 0:00:56]} Qc2 {[%emt 0:02:17]} 67. Qd4+ {[%emt 0:00:19]} Ke8 {[%emt 0:00:01]} 68. Qxa7 {[%emt 0:00:48]} Qd1+ {[%emt 0:00:24]} 69. Ke4 {[%emt 0:00:23]} 1-0

[Event "AUT Bundesliga 2022-23"]
[Site "Jenbach"]
[Date "2022.11.05"]
[Round "3.27"]
[White "Livaic, Leon"]
[Black "Donchenko, Alexander"]
[Result "1-0"]
[ECO "C77"]
[WhiteElo "2574"]
[BlackElo "2646"]
[Annotator "ChessBase"]
[PlyCount "61"]
[EventDate "2022.11.03"]
[EventType "team-tourn"]
[EventCountry "AUT"]
[SourceTitle "playchess.com"]
[Source "ChessBase"]
[SourceQuality "1"]
[TimeControl "40/5400+30:1800+30"]

1. e4 {[%emt 0:00:03]} e5 {[%emt 0:00:25]} 2. Nf3 {[%emt 0:00:09]} Nc6 {[%emt 0:00:07]} 3. Bb5 {[%emt 0:02:05]} a6 {[%emt 0:00:17]} 4. Ba4 {[%emt 0:00:08]} Nf6 {[%emt 0:00:18]} 5. d3 {[%emt 0:00:45]} b5 {[%emt 0:02:34]} 6. Bb3 {[%emt 0:00:04]} Bc5 {[%emt 0:00:14]} 7. Nc3 {[%emt 0:00:36]} d6 {[%emt 0:10:55]} 8. Nd5 {[%emt 0:01:04]} h6 {[%emt 0:03:56]} 9. c3 {[%emt 0:00:28]} O-O {[%emt 0:07:25]} 10. Nxf6+ {[%emt 0:01:11]} Qxf6 {[%emt 0:00:09]} 11. Bd5 {[%emt 0:00:12]} Bd7 {[%emt 0:02:28]} 12. Rg1 {[%emt 0:03:17]} h5 {[%emt 0:19:02]} 13. h3 {[%emt 0:08:51]} Rae8 {[%emt 0:00:55]} 14. Bg5 {[%emt 0:12:35]} Qg6 {[%emt 0:00:12]} 15. Qd2 {[%emt 0:02:37]} Ne7 {[%emt 0:04:36]} 16. Nh4 {[%emt 0:00:40]} Qh7 {[%emt 0:00:22]} 17. Bxe7 {[%emt 0:02:25]} Rxe7 {[%emt 0:00:10]} 18. Qg5 {[%emt 0:00:08]} Rfe8 {[%emt 0:04:06]} 19. Nf5 {[%emt 0:24:51]} Bxf5 {[%emt 0:02:41]} 20. exf5 {[%emt 0:00:04]} Qh6 {[%emt 0:09:45]} 21. h4 {[%emt 0:04:36]} Kf8 {[%emt 0:05:06]} 22. g4 {[%emt 0:02:01]} hxg4 {[%emt 0:07:06]} 23. Rxg4 {[%emt 0:00:04]} Qh8 {[%emt 0:00:27]} 24. Ke2 {[%emt 0:02:16]} c6 {[%emt 0:05:42]} 25. Rag1 {[%emt 0:08:50]} Rc7 {[%emt 0:04:25]} 26. Qxg7+ {[%emt 0:00:32]} Ke7 {[%emt 0:00:01]} 27. f6+ {[%emt 0:03:59]} Kd8 {[%emt 0:01:01]} 28. Qxh8 {[%emt 0:00:11]} Rxh8 {[%emt 0:00:03]} 29. Rg8+ {[%emt 0:00:07]} Rxg8 {[%emt 0:00:05]} 30. Rxg8+ {[%emt 0:00:02]} Kd7 {[%emt 0:00:07]} 31. h5 {[%emt 0:02:03]} 1-0

[Event "AUT Bundesliga 2022-23"]
[Site "Jenbach"]
[Date "2022.11.05"]
[Round "3.28"]
[White "Wagner, Dennis"]
[Black "Kuljasevic, Davorin"]
[Result "1/2-1/2"]
[ECO "C54"]
[WhiteElo "2570"]
[BlackElo "2560"]
[Annotator "ChessBase"]
[PlyCount "175"]
[EventDate "2022.11.03"]
[EventType "team-tourn"]
[EventCountry "AUT"]
[SourceTitle "playchess.com"]
[Source "ChessBase"]
[SourceQuality "1"]
[TimeControl "40/5400+30:1800+30"]

1. e4 {[%emt 0:00:06]} e5 {[%emt 0:00:09]} 2. Nf3 {[%emt 0:00:05]} Nc6 {[%emt 0:00:07]} 3. Bc4 {[%emt 0:00:06]} Bc5 {[%emt 0:00:31]} 4. c3 {[%emt 0:00:13]} Nf6 {[%emt 0:00:13]} 5. d3 {[%emt 0:00:05]} d6 {[%emt 0:00:51]} 6. Bg5 {[%emt 0:00:25]} h6 {[%emt 0:00:47]} 7. Bh4 {[%emt 0:00:05]} a5 {[%emt 0:05:36]} 8. Nbd2 {[%emt 0:02:36]} g5 {[%emt 0:05:22]} 9. Bg3 {[%emt 0:00:06]} Ba7 {[%emt 0:12:36]} 10. O-O {[%emt 0:00:48]} Nh7 {[%emt 0:06:20]} 11. d4 {[%emt 0:21:44]} h5 {[%emt 0:08:56]} 12. h4 {[%emt 0:02:47]} g4 {[%emt 0:00:09]} 13. Ne1 {[%emt 0:00:13]} O-O {[%emt 0:08:40]} 14. Nd3 {[%emt 0:22:22]} exd4 {[%emt 0:17:54]} 15. Kh1 {[%emt 0:00:04]} Kh8 {[%emt 0:06:20]} 16. f3 {[%emt 0:20:34]} dxc3 {[%emt 0:01:25]} 17. bxc3 {[%emt 0:00:09]} Be3 {[%emt 0:00:56]} 18. Qe1 {[%emt 0:06:40]} Bh6 {[%emt 0:00:25]} 19. Rb1 {[%emt 0:01:25]} a4 {[%emt 0:07:51]} 20. Bd5 {[%emt 0:15:16]} Ne7 {[%emt 0:06:34]} 21. Bxb7 {[%emt 0:00:35]} Rb8 {[%emt 0:00:45]} 22. Bxc8 {[%emt 0:00:12]} Rxb1 {[%emt 0:00:18]} 23. Qxb1 {[%emt 0:03:26]} Qxc8 {[%emt 0:00:51]} 24. c4 {[%emt 0:00:12]} Ng6 {[%emt 0:00:56]} 25. c5 {[%emt 0:01:03]} Kg8 {[%emt 0:03:07]} 26. f4 {[%emt 0:00:39]} Nf6 {[%emt 0:03:41]} 27. Qc2 {[%emt 0:01:11]} Qa6 {[%emt 0:00:27]} 28. Re1 {[%emt 0:00:44]} Re8 {[%emt 0:00:57]} 29. f5 {[%emt 0:00:04]} Nf8 {[%emt 0:00:37]} 30. Bf4 {[%emt 0:00:30]} Bg7 {[%emt 0:01:21]} 31. a3 {[%emt 0:00:30]} N8d7 {[%emt 0:00:30]} 32. cxd6 {[%emt 0:00:39]} cxd6 {[%emt 0:00:04]} 33. Nb4 {[%emt 0:00:08]} Rc8 {[%emt 0:00:40]} 34. Nxa6 {[%emt 0:00:56]} Rxc2 {[%emt 0:00:03]} 35. Nb4 {[%emt 0:00:04]} Rc3 {[%emt 0:01:04]} 36. Re3 {[%emt 0:01:05]} Rc1+ {[%emt 0:00:22]} 37. Kh2 {[%emt 0:00:02]} Ne5 {[%emt 0:00:37]} 38. Kg3 {[%emt 0:00:35]} Ra1 {[%emt 0:00:53]} 39. Bg5 {[%emt 0:00:53]} Ned7 {[%emt 0:00:33]} 40. Nc4 {[%emt 0:00:00]} Rd1 {[%emt 0:00:00]} 41. Nxd6 {[%emt 0:18:23]} Rxd6 {[%emt 0:02:30]} 42. e5 {[%emt 0:00:07]} Rd4 {[%emt 0:02:32]} 43. exf6 {[%emt 0:01:24]} Nxf6 {[%emt 0:02:41]} 44. Rd3 {[%emt 0:02:17]} Rc4 {[%emt 0:04:53]} 45. Kf2 {[%emt 0:04:24]} Rc5 {[%emt 0:02:16]} 46. Rd8+ {[%emt 0:01:11]} Kh7 {[%emt 0:00:18]} 47. Ke3 {[%emt 0:02:07]} Rxf5 {[%emt 0:01:40]} 48. Ra8 {[%emt 0:00:09]} g3 {[%emt 0:04:01]} 49. Nd3 {[%emt 0:00:05]} Ng4+ {[%emt 0:00:42]} 50. Ke2 {[%emt 0:00:08]} Nf2 {[%emt 0:06:03]} 51. Be3 {[%emt 0:00:26]} Ne4 {[%emt 0:01:16]} 52. Bd2 {[%emt 0:03:42]} Rd5 {[%emt 0:05:17]} 53. Rxa4 {[%emt 0:00:20]} Rxd3 {[%emt 0:00:23]} 54. Rxe4 {[%emt 0:00:06]} Rxa3 {[%emt 0:00:05]} 55. Bf4 {[%emt 0:02:10]} Bf6 {[%emt 0:02:03]} 56. Re3 {[%emt 0:00:19]} Ra2+ {[%emt 0:01:42]} 57. Kf3 {[%emt 0:00:08]} Bxh4 {[%emt 0:00:15]} 58. Bxg3 {[%emt 0:00:03]} Bg5 {[%emt 0:00:16]} 59. Rb3 {[%emt 0:00:17]} Kg6 {[%emt 0:00:08]} 60. Rb6+ {[%emt 0:00:14]} f6 {[%emt 0:00:06]} 61. Rb3 {[%emt 0:00:04]} Rc2 {[%emt 0:00:24]} 62. Bf2 {[%emt 0:00:21]} h4 {[%emt 0:00:15]} 63. Rd3 {[%emt 0:01:04]} Rb2 {[%emt 0:00:05]} 64. Be1 {[%emt 0:00:19]} Ra2 {[%emt 0:00:14]} 65. Rb3 {[%emt 0:00:06]} Kh5 {[%emt 0:00:10]} 66. Rd3 {[%emt 0:00:29]} Ra4 {[%emt 0:00:13]} 67. Bd2 {[%emt 0:01:47]} Ra2 {[%emt 0:01:05]} 68. Be1 {[%emt 0:00:30]} Ra1 {[%emt 0:00:36]} 69. Bf2 {[%emt 0:00:19]} Ra4 {[%emt 0:00:19]} 70. Rd4 {[%emt 0:01:28]} Ra3+ {[%emt 0:00:15]} 71. Ke2 {[%emt 0:00:04]} Ra2+ {[%emt 0:00:23]} 72. Kf3 {[%emt 0:00:09]} Ra3+ {[%emt 0:00:14]} 73. Ke2 {[%emt 0:00:01]} f5 {[%emt 0:01:47]} 74. Rd3 {[%emt 0:00:09]} Ra2+ {[%emt 0:00:16]} 75. Kf3 {[%emt 0:00:03]} Ra4 {[%emt 0:00:09]} 76. Rd4 {[%emt 0:01:14]} Ra3+ {[%emt 0:00:10]} 77. Ke2 {[%emt 0:00:03]} Ra2+ {[%emt 0:00:03]} 78. Kf3 {[%emt 0:00:03]} Ra3+ {[%emt 0:00:02]} 79. Ke2 {[%emt 0:00:01]} Rb3 {[%emt 0:03:03]} 80. Rd3 {[%emt 0:00:15]} Rb1 {[%emt 0:00:23]} 81. Kf3 {[%emt 0:00:08]} Rb4 {[%emt 0:00:20]} 82. Rd4 {[%emt 0:00:24]} Rb3+ {[%emt 0:00:08]} 83. Ke2 {[%emt 0:00:01]} h3 {[%emt 0:01:54]} 84. gxh3 {[%emt 0:00:05]} Rxh3 {[%emt 0:00:02]} 85. Rd3 {[%emt 0:01:09]} Rh2 {[%emt 0:00:12]} 86. Kf3 {[%emt 0:00:20]} Rh3+ {[%emt 0:00:39]} 87. Ke2 {[%emt 0:00:02]} Rxd3 {[%emt 0:00:05]} 88. Kxd3 {[%emt 0:00:03]} 1/2-1/2

[Event "AUT Bundesliga 2022-23"]
[Site "Jenbach"]
[Date "2022.11.05"]
[Round "3.29"]
[White "Bosiocic, Marin"]
[Black "Acs, Peter"]
[Result "0-1"]
[ECO "A06"]
[WhiteElo "2548"]
[BlackElo "2572"]
[Annotator "ChessBase"]
[PlyCount "110"]
[EventDate "2022.11.03"]
[EventType "team-tourn"]
[EventCountry "AUT"]
[SourceTitle "playchess.com"]
[Source "ChessBase"]
[SourceQuality "1"]
[TimeControl "40/5400+30:1800+30"]

1. Nf3 {[%emt 0:00:02]} d5 {[%emt 0:00:14]} 2. g3 {[%emt 0:00:06]} g6 {[%emt 0:00:54]} 3. Bg2 {[%emt 0:00:05]} Bg7 {[%emt 0:00:07]} 4. O-O {[%emt 0:00:07]} e5 {[%emt 0:01:45]} 5. d3 {[%emt 0:00:06]} Nc6 {[%emt 0:02:09]} 6. e4 {[%emt 0:00:21]} dxe4 {[%emt 0:04:10]} 7. dxe4 {[%emt 0:00:11]} Qxd1 {[%emt 0:00:13]} 8. Rxd1 {[%emt 0:00:13]} Bg4 {[%emt 0:00:18]} 9. Be3 {[%emt 0:01:19]} Nd4 {[%emt 0:20:11]} 10. Bxd4 {[%emt 0:00:06]} exd4 {[%emt 0:00:07]} 11. Nbd2 {[%emt 0:00:10]} Ne7 {[%emt 0:02:00]} 12. h3 {[%emt 0:04:03]} Bxf3 {[%emt 0:03:44]} 13. Nxf3 {[%emt 0:00:04]} Nc6 {[%emt 0:00:47]} 14. Ne1 {[%emt 0:00:35]} O-O-O {[%emt 0:18:12]} 15. f4 {[%emt 0:00:06]} Na5 {[%emt 0:00:25]} 16. Bf1 {[%emt 0:10:36]} c5 {[%emt 0:04:34]} 17. Rab1 {[%emt 0:09:11]} Rhe8 {[%emt 0:03:18]} 18. e5 {[%emt 0:00:05]} f6 {[%emt 0:00:44]} 19. exf6 {[%emt 0:00:17]} Bxf6 {[%emt 0:00:09]} 20. b4 {[%emt 0:00:26]} cxb4 {[%emt 0:00:16]} 21. Rxb4 {[%emt 0:00:13]} Re3 {[%emt 0:01:02]} 22. Kg2 {[%emt 0:05:39]} Ra3 {[%emt 0:00:56]} 23. Bd3 {[%emt 0:01:04]} Rxa2 {[%emt 0:01:34]} 24. Nf3 {[%emt 0:00:48]} Nc6 {[%emt 0:04:41]} 25. Rc4 {[%emt 0:03:30]} Re8 {[%emt 0:00:21]} 26. g4 {[%emt 0:03:50]} Kc7 {[%emt 0:03:30]} 27. g5 {[%emt 0:02:51]} Bg7 {[%emt 0:01:27]} 28. h4 {[%emt 0:02:09]} a6 {[%emt 0:04:37]} 29. h5 {[%emt 0:00:58]} b5 {[%emt 0:00:10]} 30. Rxc6+ {[%emt 0:00:32]} Kxc6 {[%emt 0:00:06]} 31. hxg6 {[%emt 0:00:27]} hxg6 {[%emt 0:01:57]} 32. Bxg6 {[%emt 0:00:05]} Rf8 {[%emt 0:01:56]} 33. Kg3 {[%emt 0:07:58]} a5 {[%emt 0:01:17]} 34. Rh1 {[%emt 0:08:34]} a4 {[%emt 0:01:37]} 35. Rh7 {[%emt 0:01:52]} Bh8 {[%emt 0:00:51]} 36. Be4+ {[%emt 0:00:05]} Kb6 {[%emt 0:01:00]} 37. g6 {[%emt 0:11:05]} a3 {[%emt 0:01:32]} 38. Ne1 {[%emt 0:10:44]} Rb8 {[%emt 0:12:17]} 39. g7 {[%emt 0:07:13]} Bxg7 {[%emt 0:00:35]} 40. Rxg7 {[%emt 0:00:00]} Ra1 {[%emt 0:00:00]} 41. Rg6+ {[%emt 0:02:33]} Ka5 {[%emt 0:18:14]} 42. Nd3 {[%emt 0:00:03]} Rc8 {[%emt 0:01:10]} 43. Rg7 {[%emt 0:10:38]} Rg1+ {[%emt 0:00:48]} 44. Bg2 {[%emt 0:00:09]} Ra8 {[%emt 0:04:13]} 45. Nc1 {[%emt 0:06:46]} Rxc1 {[%emt 0:07:08]} 46. Bxa8 {[%emt 0:00:14]} Kb6 {[%emt 0:00:31]} 47. Rb7+ {[%emt 0:04:30]} Ka6 {[%emt 0:00:16]} 48. Rb8 {[%emt 0:01:19]} a2 {[%emt 0:00:27]} 49. Be4 {[%emt 0:09:59]} Rg1+ {[%emt 0:01:59]} 50. Bg2 {[%emt 0:01:11]} Rxg2+ {[%emt 0:00:48]} 51. Kxg2 {[%emt 0:00:05]} Ka7 {[%emt 0:00:05]} 52. Rxb5 {[%emt 0:00:23]} a1=Q {[%emt 0:00:08]} 53. f5 {[%emt 0:02:15]} Qc3 {[%emt 0:00:28]} 54. Re5 {[%emt 0:00:58]} Qxc2+ {[%emt 0:00:25]} 55. Kf3 {[%emt 0:00:03]} d3 0-1

[Event "AUT Bundesliga 2022-23"]
[Site "Jenbach"]
[Date "2022.11.05"]
[Round "3.30"]
[White "Buhmann, Rainer"]
[Black "Saric, Ante"]
[Result "1-0"]
[ECO "A46"]
[WhiteElo "2561"]
[BlackElo "2510"]
[Annotator "ChessBase"]
[PlyCount "111"]
[EventDate "2022.11.03"]
[EventType "team-tourn"]
[EventCountry "AUT"]
[SourceTitle "playchess.com"]
[Source "ChessBase"]
[SourceQuality "1"]
[TimeControl "40/5400+30:1800+30"]

1. d4 {[%emt 0:00:04]} Nf6 {[%emt 0:00:05]} 2. Nf3 {[%emt 0:00:09]} d5 {[%emt 0:00:05]} 3. c4 {[%emt 0:00:06]} e6 {[%emt 0:00:03]} 4. e3 {[%emt 0:00:24]} Be7 {[%emt 0:00:09]} 5. b3 {[%emt 0:00:11]} O-O {[%emt 0:00:07]} 6. Bd3 {[%emt 0:00:06]} c5 {[%emt 0:00:06]} 7. O-O {[%emt 0:00:15]} cxd4 {[%emt 0:00:11]} 8. exd4 {[%emt 0:00:05]} Nc6 {[%emt 0:00:07]} 9. Bb2 {[%emt 0:00:19]} Nb4 {[%emt 0:00:08]} 10. Be2 {[%emt 0:00:06]} b6 {[%emt 0:00:04]} 11. Nc3 {[%emt 0:02:54]} Bb7 {[%emt 0:00:34]} 12. Ne5 {[%emt 0:05:42]} Rc8 {[%emt 0:03:27]} 13. Rc1 {[%emt 0:04:20]} Ne4 {[%emt 0:09:02]} 14. a3 {[%emt 0:08:22]} Nxc3 {[%emt 0:07:23]} 15. Rxc3 {[%emt 0:01:15]} Nc6 {[%emt 0:00:06]} 16. Ng4 {[%emt 0:21:39]} dxc4 {[%emt 0:17:04]} 17. bxc4 {[%emt 0:04:58]} Nxd4 {[%emt 0:29:15]} 18. Rd3 {[%emt 0:06:12]} Nxe2+ {[%emt 0:00:59]} 19. Qxe2 {[%emt 0:00:03]} Qc7 {[%emt 0:06:28]} 20. Nh6+ {[%emt 0:20:32]} Kh8 {[%emt 0:01:43]} 21. Qg4 {[%emt 0:04:09]} f6 {[%emt 0:02:07]} 22. Qxe6 {[%emt 0:01:49]} Qxc4 {[%emt 0:09:10]} 23. Qxc4 {[%emt 0:03:43]} Rxc4 {[%emt 0:00:02]} 24. Rd7 {[%emt 0:00:13]} Rc2 {[%emt 0:01:48]} 25. Rxe7 {[%emt 0:04:02]} Rxb2 {[%emt 0:00:08]} 26. Rxb7 {[%emt 0:00:23]} gxh6 {[%emt 0:00:02]} 27. Rxa7 {[%emt 0:08:18]} Kg8 {[%emt 0:00:04]} 28. Rc1 {[%emt 0:01:26]} Rf7 {[%emt 0:00:14]} 29. Ra4 {[%emt 0:01:16]} b5 {[%emt 0:03:47]} 30. Rc8+ {[%emt 0:01:20]} Rf8 {[%emt 0:00:02]} 31. Rg4+ {[%emt 0:00:17]} Kf7 {[%emt 0:00:01]} 32. Rc7+ {[%emt 0:00:32]} Ke6 {[%emt 0:00:01]} 33. g3 {[%emt 0:00:47]} Ra2 {[%emt 0:09:07]} 34. Re4+ {[%emt 0:00:45]} Kf5 {[%emt 0:00:38]} 35. Rf4+ {[%emt 0:00:32]} Kg6 {[%emt 0:00:11]} 36. Rg4+ {[%emt 0:00:34]} Kf5 {[%emt 0:00:03]} 37. h3 {[%emt 0:00:23]} Rxa3 {[%emt 0:01:10]} 38. Rc5+ {[%emt 0:00:21]} Ke6 {[%emt 0:00:05]} 39. Rxb5 {[%emt 0:00:03]} Ra7 {[%emt 0:01:24]} 40. Rh5 {[%emt 0:00:00]} f5 {[%emt 0:00:00]} 41. Rxh6+ {[%emt 0:02:41]} Rf6 {[%emt 0:01:31]} 42. Rgh4 {[%emt 0:00:22]} Rxh6 {[%emt 0:01:30]} 43. Rxh6+ {[%emt 0:01:21]} Ke5 {[%emt 0:00:04]} 44. Kg2 {[%emt 0:01:12]} Re7 {[%emt 0:02:41]} 45. Ra6 {[%emt 0:09:39]} Rb7 {[%emt 0:01:29]} 46. h4 {[%emt 0:02:05]} Rc7 {[%emt 0:01:29]} 47. h5 {[%emt 0:03:00]} Rb7 {[%emt 0:06:24]} 48. f4+ {[%emt 0:07:03]} Kd5 {[%emt 0:00:45]} 49. Rf6 {[%emt 0:03:18]} Rb2+ {[%emt 0:00:10]} 50. Kh3 {[%emt 0:00:03]} Ke4 {[%emt 0:00:10]} 51. Rf7 {[%emt 0:02:11]} h6 {[%emt 0:04:39]} 52. Rf6 {[%emt 0:00:13]} Kf3 {[%emt 0:03:33]} 53. Rxh6 {[%emt 0:00:17]} Rb1 {[%emt 0:00:04]} 54. Kh4 {[%emt 0:00:09]} Rh1+ {[%emt 0:00:51]} 55. Kg5 {[%emt 0:00:06]} Kxg3 {[%emt 0:00:02]} 56. Ra6 {[%emt 0:01:20]} 1-0

[Event "AUT Bundesliga 2022-23"]
[Site "Jenbach"]
[Date "2022.11.05"]
[Round "3.31"]
[White "Vachier-Lagrave, Maxime"]
[Black "Markus, Robert"]
[Result "1-0"]
[ECO "C42"]
[WhiteElo "2747"]
[BlackElo "2615"]
[Annotator "ChessBase"]
[PlyCount "87"]
[EventDate "2022.11.03"]
[EventType "team-tourn"]
[EventCountry "AUT"]
[SourceTitle "playchess.com"]
[Source "ChessBase"]
[SourceQuality "1"]
[TimeControl "40/5400+30:1800+30"]

1. e4 {[%emt 0:00:03]} e5 {[%emt 0:00:05]} 2. Nf3 {[%emt 0:00:03]} Nf6 {[%emt 0:00:07]} 3. Nxe5 {[%emt 0:00:02]} d6 {[%emt 0:00:08]} 4. Nf3 {[%emt 0:00:02]} Nxe4 {[%emt 0:00:07]} 5. Nc3 {[%emt 0:00:04]} Nf6 {[%emt 0:00:11]} 6. d4 {[%emt 0:00:06]} Be7 {[%emt 0:00:15]} 7. Bd3 {[%emt 0:00:05]} O-O {[%emt 0:00:07]} 8. O-O {[%emt 0:00:03]} Re8 {[%emt 0:04:34]} 9. Re1 {[%emt 0:04:04]} Nbd7 {[%emt 0:02:43]} 10. a4 {[%emt 0:06:19]} a5 {[%emt 0:07:25]} 11. Bf4 {[%emt 0:07:34]} Nb6 {[%emt 0:03:50]} 12. d5 {[%emt 0:08:35]} Bd7 {[%emt 0:04:46]} 13. Bf1 {[%emt 0:03:28]} Bf8 {[%emt 0:03:24]} 14. Qd4 {[%emt 0:02:28]} Rxe1 {[%emt 0:02:27]} 15. Rxe1 {[%emt 0:00:17]} Bf5 {[%emt 0:04:19]} 16. Qd1 {[%emt 0:08:15]} h6 {[%emt 0:07:51]} 17. h3 {[%emt 0:01:53]} c6 {[%emt 0:05:47]} 18. dxc6 {[%emt 0:01:08]} bxc6 {[%emt 0:00:06]} 19. b3 {[%emt 0:13:34]} Nbd5 {[%emt 0:07:23]} 20. Nxd5 {[%emt 0:01:34]} Nxd5 {[%emt 0:00:22]} 21. Bg3 {[%emt 0:02:50]} Qd7 {[%emt 0:14:54]} 22. Nd4 {[%emt 0:01:28]} Bg6 {[%emt 0:00:19]} 23. Bd3 {[%emt 0:09:24]} Bxd3 {[%emt 0:03:41]} 24. Qxd3 {[%emt 0:00:12]} Nb4 {[%emt 0:01:49]} 25. Qc3 {[%emt 0:10:01]} d5 {[%emt 0:04:08]} 26. Nf3 {[%emt 0:02:08]} Qf5 {[%emt 0:04:18]} 27. Re2 {[%emt 0:01:31]} c5 {[%emt 0:00:11]} 28. Qd2 {[%emt 0:02:02]} Nc6 {[%emt 0:02:05]} 29. Be5 {[%emt 0:01:44]} d4 {[%emt 0:04:34]} 30. Bg3 {[%emt 0:01:25]} Rc8 {[%emt 0:02:37]} 31. Ne5 {[%emt 0:03:49]} Nxe5 {[%emt 0:03:13]} 32. Rxe5 {[%emt 0:00:13]} Qg6 {[%emt 0:00:06]} 33. Qe2 {[%emt 0:00:10]} c4 {[%emt 0:04:55]} 34. bxc4 {[%emt 0:00:24]} Bb4 {[%emt 0:00:04]} 35. Rb5 {[%emt 0:03:50]} Qc6 {[%emt 0:01:08]} 36. c5 {[%emt 0:01:31]} Bxc5 {[%emt 0:01:36]} 37. Rxa5 {[%emt 0:00:06]} Bb4 {[%emt 0:02:13]} 38. Rb5 {[%emt 0:00:33]} Bf8 {[%emt 0:00:04]} 39. Qd3 {[%emt 0:03:37]} Qxc2 {[%emt 0:00:37]} 40. Qxd4 {[%emt 0:00:00]} Rc4 {[%emt 0:00:00]} 41. Qd8 {[%emt 0:03:37]} Rc8 {[%emt 0:15:39]} 42. Qd7 {[%emt 0:01:28]} Ra8 {[%emt 0:03:34]} 43. a5 {[%emt 0:03:22]} Qe4 {[%emt 0:04:34]} 44. Kh2 {[%emt 0:02:59]} 1-0